fUSD/lending_fUSD_20250321
["ID","MTS","AMOUNT","RATE_DAILY","PERIOD"]
[356498652,1742561360783,-454.4224,0.000118,2]
[356498653,1742561360805,-275.09866922,0.000118,2]
[356498654,1742561360847,-36.33584594,0.000118,2]
[356498655,1742561360880,-200.0,0.00011805,2]
[356498656,1742561360906,-504.292,0.00011847,2]
[356498657,1742561360929,-6271.34839506,0.0001185,2]
[356498658,1742561360951,-311.43451515,0.0001185,2]
[356498659,1742561360975,-888.25,0.0001189,2]
[356498660,1742561360997,-561.0,0.000119,2]
[356498661,1742561361021,-1227.33924385,0.000119,2]
[356498662,1742561361628,-10000.0,0.000119,2]
[356498663,1742561361931,-10000.0,0.000119,2]
[356498664,1742561362169,-10000.0,0.000119,2]
[356498665,1742561362542,-10000.0,0.000119,2]
[356498666,1742561362993,-10000.0,0.000119,2]
[356498667,1742561363474,-10000.0,0.000119,2]
[356498668,1742561364040,-10000.0,0.000119,2]
[356498669,1742561364453,-10000.0,0.000119,2]
[356498670,1742561364817,-10000.0,0.000119,2]
[356498671,1742561365214,-10000.0,0.000119,2]
[356498672,1742561365555,-10000.0,0.000119,2]
[356498673,1742561366115,-10000.0,0.000119,2]
[356498674,1742561366643,-10000.0,0.000119,2]
[356498675,1742561367151,-10000.0,0.000119,2]
[356498676,1742561367712,-10000.0,0.000119,2]
[356498677,1742561368169,-10000.0,0.000119,2]
[356498678,1742561368702,-10000.0,0.000119,2]
[356498679,1742561369214,-10000.0,0.000119,2]
[356498680,1742561369551,-620.0,0.000119,2]
[356498681,1742561369597,-9380.0,0.000119,2]
[356498682,1742561370032,-10000.0,0.000119,2]
[356498683,1742561370695,-10000.0,0.000119,2]
[356498684,1742561371095,-10000.0,0.000119,2]
[356498685,1742561371571,-10000.0,0.000119,2]
[356498686,1742561372437,-10000.0,0.000119,2]
[356498687,1742561372515,-10000.0,0.000119,2]
[356498688,1742561373041,-10000.0,0.000119,2]
[356498689,1742561373580,-10000.0,0.000119,2]
[356498690,1742561374102,-10000.0,0.00011548,2]
[356498691,1742561374466,-10000.0,0.00011548,2]
[356498692,1742561375041,-3900.0,0.00011548,2]
[356498693,1742561375063,-6100.0,0.000119,2]
[356498694,1742561375711,-10000.0,0.000119,2]
[356498695,1742561376328,-10000.0,0.000119,2]
[356498696,1742561377289,-10000.0,0.000119,2]
[356498697,1742561378191,-10000.0,0.000119,2]
[356498711,1742561431893,-382.68,0.00011633,2]
[356498712,1742561431903,-272.692,0.0001176,2]
[356498714,1742561431912,-861.957,0.0001176,2]
[356498716,1742561431923,-151.0,0.0001176,2]
[356498717,1742561431932,-150.0,0.00011767,2]
[356498718,1742561431942,-163.58,0.00011797,2]
[356498719,1742561431952,-1718.69495727,0.000118,2]
[356498720,1742561431963,-781.30504273,0.000118,2]
[356498722,1742561431973,-100.35680542,0.000119,2]
[356498724,1742561431985,-454.64319458,0.000119,2]
[356498726,1742561431994,-1415.43680542,0.000119,2]
[356498728,1742561432010,-1000.0,0.000119,2]
[356498730,1742561432021,-641.82964109,0.000119,2]
[356498732,1742561432033,-706.29087696,0.000119,2]
[356498734,1742561432045,-658.53,0.000119,2]
[356498735,1742561432057,-900.0,0.000119,2]
[356498736,1742561432075,-483.05887267,0.000119,2]
[356498737,1742561432131,-362.86728963,0.000119,2]
[356498738,1742561432192,-295.95831041,0.000119,2]
[356498739,1742561432253,-7830937.04417724,0.000119,2]
[356498740,1742561432267,-1810849.17933,0.000119,2]
[356498741,1742561432280,-1021520.0,0.000119,2]
[356498923,1742561437957,-846.71722265,0.0001176,2]
[356498924,1742561437969,-1704.575,0.0001176,2]
[356498925,1742561438013,-466.60719479,0.0001176,2]
[356498935,1742561439961,-768.48623998,0.0001176,2]
[356498936,1742561440901,-151.61434258,0.0001176,2]
[356498937,1742561440911,-150.0,0.0001176,2]
[356498938,1742561440920,-278.70565742,0.000118,2]
[356498939,1742561440932,-1811.7438076,0.000118,2]
[356498940,1742561440941,-8296.06714847,0.000119,2]
[356498941,1742561440953,-903.79751042,0.000119,2]
[356498942,1742561440986,382.90044,0.00012,3]
[356498956,1742561442966,-1115.0,0.0001176,2]
[356498958,1742561442976,-980.110642,0.000119,2]
[356498963,1742561443021,-906001.45702223,0.000119,2]
[356498965,1742561443031,-1000.0,0.000119,2]
[356498967,1742561443041,-156.75480123,0.000119,2]
[356498969,1742561443051,-8347.9279454,0.00011904,2]
[356498971,1742561443061,-11264.2420916,0.00011912,2]
[356498973,1742561443070,-564.7873186,0.00011912,2]
[356498975,1742561443080,-806.51201723,0.0001197,2]
[356498977,1742561443089,-298.364718,0.00011992,2]
[356498978,1742561443099,-298.364718,0.00011992,2]
[356498979,1742561443109,-151.0,0.00011992,2]
[356498980,1742561443118,-151.0,0.00011992,2]
[356498981,1742561443128,-151.0,0.00011992,2]
[356498982,1742561443137,-151.0,0.00011992,2]
[356498983,1742561443148,-151.0,0.00011992,2]
[356498984,1742561443157,-246.592978,0.00011992,2]
[356498985,1742561443167,-246.592978,0.00011992,2]
[356498986,1742561443177,-9115.3277827,0.00011992,2]
[356498987,1742561443190,-6966.4134739,0.00011992,2]
[356498988,1742561443201,-4817.499165,0.00011992,2]
[356498989,1742561443211,-151.0,0.00011992,2]
[356498990,1742561443220,-151.0,0.00011992,2]
[356498991,1742561443230,-564.7873186,0.00011992,2]
[356498992,1742561443240,-564.7873186,0.00011992,2]
[356498993,1742561443249,-564.7873186,0.00011992,2]
[356498994,1742561443258,-151.0,0.00011992,2]
[356498995,1742561443270,-151.0,0.00011992,2]
[356498996,1742561443280,-151.0,0.00011992,2]
[356498997,1742561443290,-8040.5083363,0.00011992,2]
[356498998,1742561443299,-7733.0887272,0.00011992,2]
[356498999,1742561443308,-7425.6691181,0.00011992,2]
[356499000,1742561443318,-151.0,0.00011992,2]
[356499001,1742561443327,-2984.674101,0.00011992,2]
[356499002,1742561443336,-2984.674101,0.00011992,2]
[356499003,1742561443346,-151.0,0.00011992,2]
[356499004,1742561443355,-222361.69673958,0.00012,2]
[356499005,1742561443365,-6874600.00497596,0.00012,2]
[356499006,1742561443375,-997441.234032,0.00012,2]
[356499007,1742561443384,-150.0,0.00012,2]
[356499008,1742561443395,-563.15635777,0.00012,2]
[356499009,1742561443404,-101728.60309337,0.00012,2]
[356499010,1742561443415,-151.0,0.00012,2]
[356499011,1742561443424,-151.0,0.00012,2]
[356499012,1742561443434,-151.0,0.00012,2]
[356499013,1742561443444,-246.924622,0.00012,2]
[356499014,1742561443453,-166.421927,0.00012,2]
[356499015,1742561443464,-250.0,0.00012,2]
[356499016,1742561443474,-151.0,0.00012,2]
[356499017,1742561443483,-151.0,0.00012,2]
[356499018,1742561443493,-151.712433,0.00012,2]
[356499019,1742561443502,-151.0,0.00012,2]
[356499020,1742561443512,-151.0,0.00012,2]
[356499021,1742561443522,-151.0,0.00012,2]
[356499022,1742561443531,-151.0,0.00012,2]
[356499023,1742561443541,-151.0,0.00012,2]
[356499024,1742561443551,-151.0,0.00012,2]
[356499025,1742561443561,-151.0,0.00012,2]
[356499026,1742561443571,-151.0,0.00012,2]
[356499027,1742561443580,-151.0,0.00012,2]
[356499028,1742561443589,-151.0,0.00012,2]
[356499029,1742561443599,-151.0,0.00012,2]
[356499030,1742561443609,-151.0,0.00012,2]
[356499031,1742561443618,-151.0,0.00012,2]
[356499032,1742561443628,-151.0,0.00012,2]
[356499033,1742561443638,-151.0,0.00012,2]
[356499034,1742561443646,-151.0,0.00012,2]
[356499035,1742561443656,-151.0,0.00012,2]
[356499036,1742561443665,-151.0,0.00012,2]
[356499037,1742561443675,-151.0,0.00012,2]
[356499038,1742561443684,-151.0,0.00012,2]
[356499039,1742561443694,-151.0,0.00012,2]
[356499040,1742561443708,-151.0,0.00012,2]
[356499041,1742561443718,-151.0,0.00012,2]
[356499042,1742561443727,-151.0,0.00012,2]
[356499043,1742561443737,-151.0,0.00012,2]
[356499044,1742561443746,-151.0,0.00012,2]
[356499045,1742561443756,-153.968064,0.00012,2]
[356499046,1742561443766,-151.0,0.00012,2]
[356499047,1742561443775,-151.0,0.00012,2]
[356499048,1742561443785,-151.0,0.00012,2]
[356499049,1742561443795,-151.0,0.00012,2]
[356499050,1742561443804,-151.0,0.00012,2]
[356499051,1742561443814,-151.0,0.00012,2]
[356499052,1742561443824,-151.0,0.00012,2]
[356499053,1742561443834,-151.0,0.00012,2]
[356499054,1742561443844,-151.0,0.00012,2]
[356499055,1742561443854,-151.0,0.00012,2]
[356499056,1742561443864,-151.0,0.00012,2]
[356499057,1742561443874,-151.0,0.00012,2]
[356499058,1742561443884,-295.174605,0.00012,2]
[356499059,1742561443894,-151.0,0.00012,2]
[356499060,1742561443904,-150.0,0.00012,2]
[356499061,1742561443914,-151.0,0.00012,2]
[356499062,1742561443924,-151.0,0.00012,2]
[356499063,1742561443935,-151.0,0.00012,2]
[356499064,1742561443945,-151.0,0.00012,2]
[356499065,1742561443955,-691.16877213,0.00012,2]
[356499066,1742561443965,-175.134017,0.00012,2]
[356499067,1742561443975,-175.134017,0.00012,2]
[356499068,1742561443984,-175.134017,0.00012,2]
[356499069,1742561443994,-175.134017,0.00012,2]
[356499070,1742561444004,-175.134017,0.00012,2]
[356499071,1742561444013,-175.134017,0.00012,2]
[356499072,1742561444022,-175.134017,0.00012,2]
[356499073,1742561444032,-175.134017,0.00012,2]
[356499074,1742561444042,-175.134017,0.00012,2]
[356499075,1742561444053,-175.134017,0.00012,2]
[356499076,1742561444062,-175.134017,0.00012,2]
[356499077,1742561444072,-175.134017,0.00012,2]
[356499078,1742561444082,-175.134017,0.00012,2]
[356499079,1742561444091,-175.134017,0.00012,2]
[356499080,1742561444101,-157.601624,0.00012,2]
[356499081,1742561444111,-157.601624,0.00012,2]
[356499082,1742561444121,-157.601624,0.00012,2]
[356499083,1742561444132,-157.601624,0.00012,2]
[356499084,1742561444141,-157.601624,0.00012,2]
[356499085,1742561444151,-157.601624,0.00012,2]
[356499086,1742561444273,-157.601624,0.00012,2]
[356499087,1742561444283,-157.601624,0.00012,2]
[356499088,1742561444293,-157.601624,0.00012,2]
[356499089,1742561444302,-157.601624,0.00012,2]
[356499090,1742561444311,-157.601624,0.00012,2]
[356499091,1742561444321,-157.601624,0.00012,2]
[356499092,1742561444331,-157.601624,0.00012,2]
[356499093,1742561444340,-157.601624,0.00012,2]
[356499094,1742561444350,-298.364718,0.00012,2]
[356499095,1742561444359,-298.364718,0.00012,2]
[356499096,1742561444369,-298.364718,0.00012,2]
[356499097,1742561444378,-298.364718,0.00012,2]
[356499098,1742561444388,-298.364718,0.00012,2]
[356499099,1742561444397,-298.364718,0.00012,2]
[356499100,1742561444407,-298.364718,0.00012,2]
[356499101,1742561444416,-298.364718,0.00012,2]
[356499102,1742561444425,-153.2328,0.00012,2]
[356499103,1742561444434,-298.364718,0.00012,2]
[356499104,1742561444444,-298.364718,0.00012,2]
[356499105,1742561444454,-298.364718,0.00012,2]
[356499106,1742561444464,-298.364718,0.00012,2]
[356499107,1742561444474,-298.364718,0.00012,2]
[356499108,1742561444483,-298.364718,0.00012,2]
[356499109,1742561444493,-151.0,0.00012,2]
[356499110,1742561444503,-151.0,0.00012,2]
[356499111,1742561444513,-151.0,0.00012,2]
[356499112,1742561444523,-151.0,0.00012,2]
[356499113,1742561444532,-151.0,0.00012,2]
[356499114,1742561444543,-151.0,0.00012,2]
[356499115,1742561444552,-151.0,0.00012,2]
[356499116,1742561444562,-151.0,0.00012,2]
[356499117,1742561444572,-151.0,0.00012,2]
[356499118,1742561444581,-151.0,0.00012,2]
[356499119,1742561444591,-151.0,0.00012,2]
[356499120,1742561444601,-151.0,0.00012,2]
[356499121,1742561444611,-151.0,0.00012,2]
[356499122,1742561444620,-151.0,0.00012,2]
[356499123,1742561444630,-151.0,0.00012,2]
[356499124,1742561444639,-151.0,0.00012,2]
[356499125,1742561444649,-175.44287,0.00012,2]
[356499126,1742561444659,-151.0,0.00012,2]
[356499127,1742561444669,-278.555689,0.00012,2]
[356499128,1742561444679,-151.0,0.00012,2]
[356499129,1742561444690,-205.074356,0.00012,2]
[356499130,1742561444701,-151.0,0.00012,2]
[356499131,1742561444711,-246.592978,0.00012,2]
[356499132,1742561444721,-246.592978,0.00012,2]
[356499133,1742561444731,-246.592978,0.00012,2]
[356499134,1742561444741,-246.592978,0.00012,2]
[356499135,1742561444751,-246.592978,0.00012,2]
[356499136,1742561444760,-246.592978,0.00012,2]
[356499137,1742561444770,-246.592978,0.00012,2]
[356499138,1742561444781,-246.592978,0.00012,2]
[356499139,1742561444790,-246.592978,0.00012,2]
[356499140,1742561444800,-246.592978,0.00012,2]
[356499141,1742561444809,-246.592978,0.00012,2]
[356499142,1742561444819,-246.592978,0.00012,2]
[356499143,1742561444828,-246.592978,0.00012,2]
[356499144,1742561444838,-246.592978,0.00012,2]
[356499145,1742561444847,-151.0,0.00012,2]
[356499146,1742561444857,-151.154687,0.00012,2]
[356499147,1742561444867,-151.0,0.00012,2]
[356499148,1742561444877,-151.0,0.00012,2]
[356499149,1742561444886,-293.800428,0.00012,2]
[356499150,1742561444895,-190.569461,0.00012,2]
[356499151,1742561444905,-151.0,0.00012,2]
[356499152,1742561444914,-151.0,0.00012,2]
[356499153,1742561444924,-151.0,0.00012,2]
[356499154,1742561444934,-151.0,0.00012,2]
[356499155,1742561444943,-151.0,0.00012,2]
[356499156,1742561444953,-151.0,0.00012,2]
[356499157,1742561444962,-151.0,0.00012,2]
[356499158,1742561444972,-151.0,0.00012,2]
[356499159,1742561444981,-151.0,0.00012,2]
[356499160,1742561444991,-151.0,0.00012,2]
[356499161,1742561445000,-151.0,0.00012,2]
[356499162,1742561445010,-151.0,0.00012,2]
[356499163,1742561445020,-151.0,0.00012,2]
[356499164,1742561445029,-179.824968,0.00012,2]
[356499165,1742561445038,-151.0,0.00012,2]
[356499166,1742561445048,-151.0,0.00012,2]
[356499167,1742561445058,-151.0,0.00012,2]
[356499168,1742561445067,-151.0,0.00012,2]
[356499169,1742561445077,-151.0,0.00012,2]
[356499170,1742561445086,-151.0,0.00012,2]
[356499171,1742561445095,-151.0,0.00012,2]
[356499172,1742561445106,-151.0,0.00012,2]
[356499173,1742561445116,-151.0,0.00012,2]
[356499174,1742561445125,-151.0,0.00012,2]
[356499175,1742561445134,-151.0,0.00012,2]
[356499176,1742561445145,-151.0,0.00012,2]
[356499177,1742561445155,-151.0,0.00012,2]
[356499178,1742561445165,-244.597856,0.00012,2]
[356499179,1742561445174,-151.0,0.00012,2]
[356499180,1742561445185,-151.0,0.00012,2]
[356499181,1742561445196,-151.0,0.00012,2]
[356499182,1742561445207,-151.0,0.00012,2]
[356499183,1742561445217,-173.700815,0.00012,2]
[356499184,1742561445226,-151.0,0.00012,2]
[356499185,1742561445237,-151.0,0.00012,2]
[356499186,1742561445246,-151.0,0.00012,2]
[356499187,1742561445256,-151.0,0.00012,2]
[356499188,1742561445266,-151.0,0.00012,2]
[356499189,1742561445276,-151.0,0.00012,2]
[356499190,1742561445286,-151.0,0.00012,2]
[356499191,1742561445296,-151.0,0.00012,2]
[356499192,1742561445306,-151.0,0.00012,2]
[356499193,1742561445315,-151.0,0.00012,2]
[356499194,1742561445324,-151.0,0.00012,2]
[356499195,1742561445333,-151.0,0.00012,2]
[356499196,1742561445342,-151.0,0.00012,2]
[356499197,1742561445352,-228.569478,0.00012,2]
[356499198,1742561445361,-151.0,0.00012,2]
[356499199,1742561445370,-151.0,0.00012,2]
[356499200,1742561445379,-151.0,0.00012,2]
[356499201,1742561445389,-154.15282,0.00012,2]
[356499202,1742561445398,-151.0,0.00012,2]
[356499203,1742561445408,-151.0,0.00012,2]
[356499204,1742561445417,-151.0,0.00012,2]
[356499205,1742561445426,-151.0,0.00012,2]
[356499206,1742561445435,-151.0,0.00012,2]
[356499207,1742561445445,-151.0,0.00012,2]
[356499208,1742561445454,-151.0,0.00012,2]
[356499209,1742561445464,-156.669597,0.00012,2]
[356499210,1742561445473,-151.0,0.00012,2]
[356499211,1742561445483,-151.0,0.00012,2]
[356499212,1742561445492,-2984.674101,0.00012,2]
[356499213,1742561445501,-151.0,0.00012,2]
[356499214,1742561445510,-2984.674101,0.00012,2]
[356499215,1742561445519,-151.0,0.00012,2]
[356499216,1742561445529,-2984.674101,0.00012,2]
[356499217,1742561445538,-151.0,0.00012,2]
[356499218,1742561445548,-2984.674101,0.00012,2]
[356499219,1742561445558,-151.0,0.00012,2]
[356499220,1742561445568,-2984.674101,0.00012,2]
[356499221,1742561445577,-2984.674101,0.00012,2]
[356499222,1742561445586,-2984.674101,0.00012,2]
[356499223,1742561445596,-151.0,0.00012,2]
[356499224,1742561445605,-2984.674101,0.00012,2]
[356499225,1742561445614,-151.0,0.00012,2]
[356499226,1742561445624,-2984.674101,0.00012,2]
[356499227,1742561445633,-154.726358,0.00012,2]
[356499228,1742561445643,-2984.674101,0.00012,2]
[356499229,1742561445653,-2984.674101,0.00012,2]
[356499230,1742561445662,-2984.674101,0.00012,2]
[356499231,1742561445672,-151.0,0.00012,2]
[356499232,1742561445681,-151.0,0.00012,2]
[356499233,1742561445692,-151.0,0.00012,2]
[356499234,1742561445702,-151.0,0.00012,2]
[356499235,1742561445712,-151.0,0.00012,2]
[356499236,1742561445721,-151.0,0.00012,2]
[356499237,1742561445730,-246.592978,0.00012056,2]
[356499238,1742561445739,-246.592978,0.00012056,2]
[356499239,1742561445750,-151.0,0.00012056,2]
[356499240,1742561445760,-151.0,0.00012056,2]
[356499241,1742561445769,-151.0,0.00012056,2]
[356499242,1742561445779,-2984.674101,0.00012056,2]
[356499243,1742561445788,-2984.674101,0.00012056,2]
[356499244,1742561445798,-150.0,0.00012077,2]
[356499245,1742561445808,-298.364718,0.00012101,2]
[356499246,1742561445818,-298.364718,0.00012101,2]
[356499247,1742561445827,-151.0,0.00012101,2]
[356499248,1742561445837,-246.592978,0.00012101,2]
[356499249,1742561445847,-246.592975,0.00012101,2]
[356499250,1742561445856,-254.817251,0.00012101,2]
[356499251,1742561445865,-151.0,0.00012101,2]
[356499252,1742561445875,-228.447393,0.00012101,2]
[356499253,1742561445884,-151.0,0.00012101,2]
[356499254,1742561445894,-151.0,0.00012101,2]
[356499255,1742561445904,-2984.674101,0.00012101,2]
[356499256,1742561445913,-2984.674101,0.00012101,2]
[356499257,1742561445923,-151.0,0.00012101,2]
[356499258,1742561445934,-151.0,0.00012101,2]
[356499259,1742561445944,-27893.63788518,0.00012101,2]
[356499260,1742561445953,-1000.0,0.00012335,2]
[356499261,1742561445962,-151.0,0.00012433,2]
[356499262,1742561445972,-151.0,0.00012433,2]
[356499263,1742561445982,-175.134017,0.00012433,2]
[356499264,1742561445991,-175.134017,0.00012433,2]
[356499265,1742561446001,-157.601624,0.00012433,2]
[356499266,1742561446010,-157.601624,0.00012433,2]
[356499267,1742561446020,-500.0,0.00012433,2]
[356499268,1742561446030,-991.0,0.00012433,2]
[356499269,1742561446039,-1246.0,0.00012433,2]
[356499270,1742561446049,-500.0,0.00012433,2]
[356499271,1742561446058,-150.0,0.00012433,2]
[356499272,1742561446068,-500.0,0.00012433,2]
[356499273,1742561446078,-150.0,0.00012433,2]
[356499274,1742561446198,-500.0,0.00012433,2]
[356499275,1742561446208,-150.0,0.00012433,2]
[356499276,1742561446217,-500.0,0.00012433,2]
[356499277,1742561446228,-150.0,0.00012433,2]
[356499278,1742561446241,-275.766665,0.0001246,2]
[356499279,1742561446250,-556.44344937,0.0001246,2]
[356499280,1742561446260,-991.0,0.0001246,2]
[356499281,1742561446271,-1246.0,0.0001246,2]
[356499282,1742561446280,-500.0,0.0001246,2]
[356499283,1742561446289,-500.0,0.0001246,2]
[356499284,1742561446299,-500.0,0.0001246,2]
[356499285,1742561446308,-150.0,0.0001246,2]
[356499286,1742561446316,-500.0,0.0001246,2]
[356499287,1742561446326,-150.0,0.0001246,2]
[356499288,1742561446335,-991.0,0.00012488,2]
[356499289,1742561446344,-1246.0,0.00012488,2]
[356499290,1742561446354,-500.0,0.00012488,2]
[356499291,1742561446364,-500.0,0.00012488,2]
[356499292,1742561446374,-500.0,0.00012488,2]
[356499293,1742561446383,-150.0,0.00012488,2]
[356499294,1742561446392,-655.37284312,0.00012488,2]
[356499295,1742561446402,-224.47575036,0.00012488,2]
[356499296,1742561446412,-151.0,0.00012488,2]
[356499297,1742561446421,-152.866729,0.00012488,2]
[356499298,1742561446431,-991.0,0.00012515,2]
[356499299,1742561446441,-1246.0,0.00012515,2]
[356499300,1742561446450,-500.0,0.00012515,2]
[356499301,1742561446459,-988.17730201,0.00012515,2]
[356499302,1742561446469,-500.0,0.00012515,2]
[356499303,1742561446478,-150.98606901,0.00012515,2]
[356499305,1742561446487,-298.364718,0.00012542,2]
[356499306,1742561446496,-298.364723,0.00012542,2]
[356499307,1742561446505,-991.0,0.00012543,2]
[356499308,1742561446514,-1246.0,0.00012543,2]
[356499309,1742561446523,-584.48092049,0.00012543,2]
[356499310,1742561446532,-500.0,0.00012543,2]
[356499311,1742561446542,-991.0,0.0001257,2]
[356499312,1742561446552,-1246.0,0.0001257,2]
[356499313,1742561446561,-500.0,0.0001257,2]
[356499314,1742561446571,-151.0,0.00012596,2]
[356499315,1742561446580,-151.0,0.00012596,2]
[356499316,1742561446589,-116036.32536975,0.00012596,2]
[356499317,1742561446598,-151.0,0.00012597,2]
[356499318,1742561446607,-151.0,0.00012597,2]
[356499319,1742561446616,-235.665608,0.00012597,2]
[356499320,1742561446626,-151.0,0.00012597,2]
[356499321,1742561446635,-151.0,0.00012597,2]
[356499322,1742561446646,-2984.674101,0.00012597,2]
[356499324,1742561446655,-2984.674097,0.00012597,2]
[356499325,1742561446665,-991.0,0.00012597,2]
[356499326,1742561446675,-1246.0,0.00012597,2]
[356499327,1742561446684,-500.0,0.00012597,2]
[356499328,1742561446697,-991.0,0.00012625,2]
[356499329,1742561446706,-1246.0,0.00012625,2]
[356499330,1742561446716,-500.0,0.00012625,2]
[356499331,1742561446725,-175.134017,0.00012625,2]
[356499332,1742561446735,-175.134017,0.00012625,2]
[356499333,1742561446743,-157.601624,0.00012625,2]
[356499334,1742561446753,-157.601624,0.00012625,2]
[356499335,1742561446763,-151.0,0.00012625,2]
[356499336,1742561446773,-151.0,0.00012628,2]
[356499337,1742561446783,-185.353715,0.00012628,2]
[356499338,1742561446792,-175.134017,0.00012628,2]
[356499339,1742561446801,-175.134009,0.00012628,2]
[356499340,1742561446811,-157.601624,0.00012628,2]
[356499341,1742561446820,-157.60162152,0.00012628,2]
[356499342,1742561446830,-213.183182,0.00012628,2]
[356499343,1742561446839,-151.0,0.0001263,2]
[356499344,1742561446849,-991.0,0.00012652,2]
[356499345,1742561446858,-1246.0,0.00012652,2]
[356499346,1742561446868,-500.0,0.00012652,2]
[356499347,1742561446878,-991.0,0.0001268,2]
[356499348,1742561446887,-1246.0,0.0001268,2]
[356499349,1742561446897,-904.81260982,0.0001268,2]
[356499350,1742561446906,-288.76,0.0001269,2]
[356499351,1742561446915,-92980.13809807,0.00012705,2]
[356499352,1742561446925,-151.0,0.00012705,2]
[356499353,1742561446935,-151.0,0.00012705,2]
[356499354,1742561446945,-151.0,0.00012705,2]
[356499355,1742561446954,-151.0,0.00012705,2]
[356499356,1742561446963,-991.0,0.00012707,2]
[356499357,1742561446973,-1246.0,0.00012707,2]
[356499358,1742561446982,-991.0,0.00012734,2]
[356499359,1742561446992,-1246.0,0.00012734,2]
[356499360,1742561447002,-991.0,0.00012762,2]
[356499361,1742561447011,-1246.0,0.00012762,2]
[356499362,1742561447021,-991.0,0.00012789,2]
[356499363,1742561447031,-1246.0,0.00012789,2]
[356499364,1742561447040,-150.0,0.00012797,2]
[356499365,1742561447050,-991.0,0.00012817,2]
[356499366,1742561447060,-1246.0,0.00012817,2]
[356499367,1742561447070,-991.0,0.00012844,2]
[356499368,1742561447079,-1246.0,0.00012844,2]
[356499369,1742561447089,-991.0,0.00012871,2]
[356499370,1742561447098,-1246.0,0.00012871,2]
[356499371,1742561447108,-991.0,0.00012899,2]
[356499372,1742561447117,-1246.0,0.00012899,2]
[356499373,1742561447127,-991.0,0.00012926,2]
[356499374,1742561447136,-1246.0,0.00012926,2]
[356499375,1742561447147,-151.0,0.00012953,2]
[356499376,1742561447157,-500.0,0.00012953,2]
[356499377,1742561447167,-500.0,0.00012953,2]
[356499378,1742561447177,-500.0,0.00012953,2]
[356499379,1742561447186,-500.0,0.00012953,2]
[356499380,1742561447196,-500.0,0.00012953,2]
[356499381,1742561447205,-500.0,0.00012953,2]
[356499382,1742561447215,-500.0,0.00012953,2]
[356499383,1742561447224,-500.0,0.00012953,2]
[356499384,1742561447234,-500.0,0.00012953,2]
[356499385,1742561447243,-500.0,0.00012953,2]
[356499386,1742561447253,-500.0,0.00012953,2]
[356499387,1742561447262,-500.0,0.00012953,2]
[356499388,1742561447272,-500.0,0.00012953,2]
[356499389,1742561447281,-500.0,0.00012953,2]
[356499390,1742561447291,-500.0,0.00012953,2]